bitfinex/quotes_BTCUSD_20250808
["timestamp","ask_amount","ask_price","bid_price","bid_amount"]
[1754634510742,0.38920578,116670.0,116660.0,0.63332892]
[1754634511004,0.38920578,116670.0,116660.0,0.21004433]
[1754634511203,0.2779632,116670.0,116660.0,0.21004433]
[1754634511543,0.2779632,116670.0,116660.0,0.63332892]
[1754634511773,0.21778211,116670.0,116660.0,0.63332892]
[1754634514776,0.21778211,116670.0,116660.0,0.21004433]
[1754634515079,0.21778211,116670.0,116660.0,0.63332892]
[1754634515649,0.21778211,116670.0,116660.0,0.21004433]
[1754634515847,0.21778211,116670.0,116660.0,0.63332892]
[1754634518727,0.25898333,116670.0,116660.0,0.63332892]
[1754634518954,0.430407,116670.0,116660.0,0.21004433]
[1754634519728,0.25898333,116670.0,116660.0,0.21004433]
[1754634520173,0.430407,116670.0,116660.0,0.21004433]
[1754634520964,0.432377,116670.0,116660.0,0.21004433]
[1754634521149,0.26095333,116670.0,116660.0,0.21004433]
[1754634522676,0.432377,116670.0,116660.0,0.21004433]
[1754634523232,0.26095333,116670.0,116660.0,0.21004433]
[1754634523863,0.432377,116670.0,116660.0,0.21004433]
[1754634524611,0.21778211,116670.0,116660.0,0.63332892]
[1754634525263,0.08686211,116670.0,116660.0,0.63332892]
[1754634525583,0.21778211,116670.0,116660.0,0.63332892]
[1754634528086,0.21778211,116670.0,116660.0,0.21004433]
[1754634528282,0.21778211,116670.0,116660.0,0.63332892]
[1754634532665,0.21778211,116670.0,116660.0,0.84492533]
[1754634547447,0.21778211,116670.0,116660.0,0.21004433]
[1754634547562,0.21778211,116670.0,116660.0,0.84492533]
[1754634553924,0.21778211,116670.0,116660.0,0.21004433]
[1754634554142,0.21778211,116670.0,116660.0,0.84492533]
[1754634554504,0.24211846,116670.0,116660.0,0.84492533]
[1754634555796,0.24211846,116670.0,116660.0,0.84179533]
[1754634556365,0.24211846,116670.0,116660.0,0.84479533]
[1754634556559,0.24211846,116670.0,116660.0,0.52435483]
[1754634556766,0.25773846,116670.0,116660.0,0.49792483]
[1754634560027,0.24503846,116670.0,116660.0,0.49792483]
[1754634560166,0.24211846,116670.0,116660.0,0.49792483]
[1754634560367,0.24211846,116670.0,116660.0,0.52047483]
[1754634560782,0.24211846,116670.0,116660.0,0.20303433]
[1754634560976,0.24211846,116670.0,116660.0,0.52047483]
[1754634564011,0.24211846,116670.0,116660.0,0.84288533]
[1754634564399,0.21778211,116670.0,116660.0,0.84288533]
[1754634565684,0.21778211,116670.0,116660.0,0.97372533]
[1754634573060,0.21778211,116670.0,116660.0,0.33884433]
[1754634573221,0.21778211,116670.0,116660.0,0.97372533]
[1754634574889,0.21778211,116670.0,116660.0,0.33884433]
[1754634575013,0.21778211,116670.0,116660.0,0.97372533]
[1754634577640,0.21778211,116670.0,116660.0,0.84288533]
[1754634578513,0.21778211,116670.0,116660.0,0.20800433]
[1754634578705,0.21977211,116670.0,116660.0,0.83988533]
[1754634579053,0.21977211,116670.0,116660.0,0.84288533]
[1754634580523,0.21778211,116670.0,116660.0,0.84288533]
[1754634583347,0.21778211,116670.0,116660.0,0.97368533]
[1754634587408,0.08686211,116670.0,116660.0,0.97368533]
[1754634593401,0.14824902,116680.0,116670.0,0.17142367]
[1754634593583,0.25776132,116680.0,116670.0,0.49099417]
[1754634593910,0.10431113,116680.0,116670.0,0.51716417]
[1754634594055,0.44261425,116700.0,116690.0,0.17139429]
[1754634594251,0.67970538,116700.0,116690.0,0.17139429]
[1754634594474,1.00573257,116700.0,116690.0,0.17139429]
[1754634595073,0.68829207,116700.0,116690.0,0.17139429]
[1754634595474,0.68929207,116700.0,116690.0,0.17139429]
[1754634596233,0.69029207,116700.0,116690.0,0.17139429]
[1754634596653,0.69029207,116700.0,116690.0,0.48883479]
[1754634596867,0.67467207,116700.0,116690.0,0.48883479]
[1754634597072,0.24787782,116700.0,116690.0,0.51178479]
[1754634597474,0.23929113,116700.0,116690.0,0.51713479]
[1754634597912,0.23731113,116700.0,116690.0,0.51713479]
[1754634599866,0.23631113,116700.0,116690.0,0.51713479]
[1754634600216,0.23531113,116700.0,116690.0,0.51713479]
[1754634600428,0.29274537,116700.0,116690.0,0.51713479]
[1754634600884,0.29374537,116700.0,116690.0,0.51713479]
[1754634601274,0.01764902,116700.0,116690.0,0.83457529]
[1754634601452,0.0002,116700.0,116690.0,0.83457529]
[1754634602767,0.0002,116700.0,116690.0,0.6226219]
[1754634603753,0.0002,116700.0,116690.0,0.6236219]
[1754634604387,0.0002,116700.0,116690.0,0.6256219]
[1754634604809,0.0002,116700.0,116690.0,0.7563819]
[1754634605685,0.0002,116700.0,116690.0,0.33345429]
[1754634605903,0.0002,116700.0,116690.0,0.7563819]
[1754634608951,0.0002,116700.0,116690.0,0.7740309]
[1754634609769,0.0002,116700.0,116690.0,0.7730309]
[1754634609985,0.0002,116700.0,116690.0,0.7710309]
[1754634610185,0.0002,116700.0,116690.0,0.7720309]
[1754634612274,0.0002,116700.0,116690.0,1.04143089]
[1754634613544,0.0002,116700.0,116690.0,0.61846328]
[1754634613747,0.0002,116700.0,116690.0,1.04139089]
[1754634617857,0.0002,116700.0,116690.0,0.61846328]
[1754634618054,0.0002,116700.0,116690.0,1.04139089]
[1754634618310,0.0002,116700.0,116690.0,0.7719909]
[1754634619938,0.0002,116700.0,116690.0,0.34906329]
[1754634620103,0.0002,116700.0,116690.0,0.7719909]
[1754634621746,0.0002,116700.0,116690.0,1.38139089]
[1754634621939,0.0002,116700.0,116690.0,0.95846328]
[1754634622171,0.0002,116700.0,116690.0,1.38139089]
[1754634623108,4e-05,116710.0,116700.0,0.1713796]
[1754634623312,4e-05,116710.0,116700.0,0.75496945]
[1754634623572,4e-05,116710.0,116700.0,0.75282721]
[1754634623951,4e-05,116710.0,116700.0,0.77047621]
[1754634624519,4e-05,116710.0,116700.0,0.3475486]
[1754634624751,4e-05,116710.0,116700.0,0.77047621]
[1754634625366,4e-05,116710.0,116700.0,0.79578465]
[1754634625625,0.00104,116710.0,116700.0,0.79578465]
[1754634627162,0.00104,116710.0,116700.0,0.37285704]
[1754634627374,0.00302,116710.0,116700.0,0.24213704]
[1754634627671,0.01572,116710.0,116700.0,0.76806465]
[1754634627888,0.02046902,116710.0,116700.0,0.34513704]
[1754634628090,0.03607902,116710.0,116700.0,0.76806465]
[1754634629012,0.02337902,116710.0,116700.0,0.76806465]
[1754634629218,0.02046902,116710.0,116700.0,0.76806465]
[1754634629606,0.02046902,116710.0,116700.0,0.79072465]
[1754634631265,0.02046902,116710.0,116700.0,0.77307565]
[1754634632199,0.01848902,116710.0,116700.0,0.77821565]
[1754634634687,0.01848902,116710.0,116700.0,0.79670465]
[1754634635850,0.01848902,116710.0,116700.0,0.66076465]
[1754634636051,0.02047902,116710.0,116700.0,0.76910465]
[1754634636257,0.02047902,116710.0,116700.0,0.79176465]
[1754634637200,0.02047902,116710.0,116700.0,0.66076465]
[1754634637436,0.02047902,116710.0,116700.0,0.79176465]
[1754634637799,0.02047902,116710.0,116700.0,0.77327565]
[1754634638343,0.02047902,116710.0,116700.0,0.35034804]
[1754634638544,0.02047902,116710.0,116700.0,0.77631565]
[1754634639354,0.02047902,116710.0,116700.0,0.77841565]
[1754634640702,0.12295113,116710.0,116700.0,0.3024996]
[1754634640920,0.12295113,116710.0,116700.0,0.72542721]
[1754634641704,0.11025113,116710.0,116700.0,0.72542721]
[1754634641923,0.10734113,116710.0,116700.0,0.72542721]
[1754634643025,0.10734113,116710.0,116700.0,0.74808721]
[1754634643972,0.12295113,116710.0,116700.0,0.3024996]
[1754634644162,0.12295113,116710.0,116700.0,0.72542721]
[1754634644868,0.10734113,116710.0,116700.0,0.3024996]
[1754634645032,0.10734113,116710.0,116700.0,0.72542721]
[1754634645245,0.10734113,116710.0,116700.0,0.74835721]
[1754634647321,0.10734113,116710.0,116700.0,0.75334721]
[1754634648694,0.10535113,116710.0,116700.0,0.75334721]
[1754634649126,0.00104,116710.0,116700.0,0.77871221]
[1754634650335,0.00069898,116710.0,116700.0,0.77871221]
[1754634651568,0.00069898,116710.0,116700.0,1.20163982]
[1754634651891,0.00069898,116710.0,116700.0,0.77871221]
[1754634655807,0.00069898,116710.0,116700.0,0.78214221]
[1754634656680,0.00069898,116710.0,116700.0,1.0515422]
[1754634661184,0.020128,116710.0,116700.0,0.3506346]
[1754634661392,0.00069898,116710.0,116700.0,0.77855221]
[1754634668259,0.00069898,116710.0,116700.0,0.79640121]
[1754634674968,0.00069898,116710.0,116700.0,1.13640121]
[1754634676797,0.00069898,116710.0,116700.0,1.13650121]
[1754634684038,9.898e-05,116720.0,116710.0,0.17136492]
[1754634684235,0.00222111,116720.0,116710.0,0.74946253]
[1754634685837,0.00322111,116720.0,116710.0,0.74946253]
[1754634686925,0.00322111,116720.0,116710.0,0.32653492]
[1754634687139,0.01884111,116720.0,116710.0,0.30208492]
[1754634687464,0.00614111,116720.0,116710.0,0.30208492]
[1754634687646,0.00322111,116720.0,116710.0,0.74942253]
[1754634689833,0.00322111,116720.0,116710.0,0.32649492]
[1754634690054,0.00322111,116720.0,116710.0,0.74942253]
[1754634690254,0.00322111,116720.0,116710.0,0.75449253]
[1754634690905,0.00322111,116720.0,116710.0,0.33156492]
[1754634691150,0.00322111,116720.0,116710.0,0.75449253]
[1754634692152,0.00322111,116720.0,116710.0,0.35728892]
[1754634692375,0.00322111,116720.0,116710.0,0.78021653]
[1754634696526,0.00322111,116720.0,116710.0,0.35728892]
[1754634696755,0.00322111,116720.0,116710.0,0.78021653]
[1754634697689,0.00124111,116720.0,116710.0,0.78021653]
[1754634698153,0.00124111,116720.0,116710.0,0.35728892]
[1754634698380,0.00124111,116720.0,116710.0,0.78021653]
[1754634698597,0.00124111,116720.0,116710.0,0.35728892]
[1754634698774,0.00124111,116720.0,116710.0,0.78021653]
[1754634701804,0.00124111,116720.0,116710.0,0.35728892]
[1754634702011,0.00124111,116720.0,116710.0,0.78021653]
[1754634718652,0.00124111,116720.0,116710.0,0.67446615]
[1754634719361,0.00124111,116720.0,116710.0,0.35728892]
[1754634719561,0.00124111,116720.0,116710.0,0.67446615]
[1754634719985,0.00114111,116720.0,116710.0,0.67446615]
[1754634722795,0.02057013,116720.0,116710.0,0.35221892]
[1754634722982,0.5959597,116720.0,116710.0,0.050134]
[1754634723192,0.18881394,116710.0,116700.0,0.3274646]
[1754634723416,0.33662625,116710.0,116700.0,0.3761316]
[1754634723622,0.19081394,116710.0,116700.0,0.69330883]
[1754634724006,0.01944902,116710.0,116700.0,0.69330883]
[1754634724175,0.08603142,116710.0,116700.0,0.66758183]
[1754634724698,0.08603142,116710.0,116700.0,0.3504046]
[1754634725481,0.34425845,116710.0,116700.0,0.1943196]
[1754634725684,0.34425845,116710.0,116700.0,0.3020996]
[1754634725685,0.17289353,116710.0,116700.0,0.3020996]
[1754634726258,0.17289353,116710.0,116700.0,0.3250396]
[1754634727616,0.34425845,116710.0,116700.0,0.3250396]
[1754634727876,0.34425845,116710.0,116700.0,0.3020996]
[1754634728041,0.01744902,116700.0,116690.0,0.231671]
[1754634728261,0.09919563,116700.0,116690.0,0.338824]
[1754634728714,0.01944902,116700.0,116690.0,0.338824]
[1754634729314,0.01944902,116700.0,116690.0,0.339824]
[1754634729505,0.01744902,116700.0,116690.0,0.339824]
[1754634732261,0.10631113,116700.0,116690.0,0.336784]
[1754634732478,0.10631113,116700.0,116690.0,0.334664]
[1754634732676,0.14209898,116700.0,116690.0,0.334664]
[1754634733339,0.14209898,116700.0,116690.0,0.337704]
[1754634733544,0.14209898,116700.0,116690.0,0.339824]
[1754634736137,0.14209898,116700.0,116690.0,0.7628826]
[1754634736352,0.10431113,116700.0,116690.0,0.7628826]
[1754634736934,0.10431113,116700.0,116690.0,0.339824]
[1754634737168,0.10431113,116700.0,116690.0,0.7628826]
[1754634740053,0.10431113,116700.0,116690.0,0.6321226]
[1754634740270,0.10629113,116700.0,116690.0,0.7630026]
[1754634740476,0.10431113,116700.0,116690.0,0.7630026]
[1754634740681,0.13873498,116700.0,116690.0,0.7630026]
[1754634742107,0.10431113,116700.0,116690.0,0.7630026]
[1754634744948,0.27569073,116700.0,116690.0,0.7630026]
[1754634745397,0.10431113,116700.0,116690.0,0.7630026]
[1754634745702,0.27569073,116700.0,116690.0,0.7630026]
[1754634746727,0.27569073,116700.0,116690.0,0.65725999]
[1754634746887,0.31578157,116700.0,116690.0,0.65725999]
[1754634747611,0.31578157,116700.0,116690.0,0.65625999]
[1754634747944,0.14440197,116700.0,116690.0,0.65625999]
[1754634749825,0.31578157,116700.0,116690.0,0.65625999]
[1754634752887,0.32425019,116700.0,116690.0,0.65625999]
[1754634753291,0.14440197,116700.0,116690.0,0.338944]
[1754634753516,0.14440197,116700.0,116690.0,0.65625999]
[1754634754565,0.31578157,116700.0,116690.0,0.65625999]
[1754634756194,0.44654157,116700.0,116690.0,0.65625999]
[1754634757123,0.45505411,116700.0,116690.0,0.65625999]
[1754634758710,0.45505411,116700.0,116690.0,0.52537999]
[1754634759115,0.45505411,116700.0,116690.0,0.208064]
[1754634759339,0.45505411,116700.0,116690.0,0.52537999]
[1754634760144,0.45605411,116700.0,116690.0,0.52537999]
[1754634760344,0.45705411,116700.0,116690.0,0.52537999]
[1754634761192,0.44854157,116700.0,116690.0,0.52537999]
[1754634761404,0.44854157,116700.0,116690.0,0.208064]
[1754634761614,0.44854157,116700.0,116690.0,0.52537999]
[1754634762751,0.44854157,116700.0,116690.0,0.65613999]
[1754634763982,0.45692027,116700.0,116690.0,0.65713999]
[1754634764880,0.45692027,116700.0,116690.0,0.52637999]
[1754634765248,0.45891027,116700.0,116690.0,0.52637999]
[1754634766275,0.45891027,116700.0,116690.0,0.209064]
[1754634766528,0.45891027,116700.0,116690.0,0.52637999]
[1754634767665,0.45053157,116700.0,116690.0,0.52637999]
[1754634767868,0.44854157,116700.0,116690.0,0.52637999]
[1754634768118,0.45693663,116700.0,116690.0,0.209064]
[1754634768247,0.45693663,116700.0,116690.0,0.52637999]
[1754634768651,0.45693663,116700.0,116690.0,0.209064]
[1754634768844,0.45693663,116700.0,116690.0,0.52637999]
[1754634770873,0.45892663,116700.0,116690.0,0.52637999]
[1754634771691,0.45892663,116700.0,116690.0,0.0291]
[1754634771891,0.45892663,116700.0,116690.0,0.34641599]
[1754634772335,1.10916861,116700.0,116690.0,0.001]
[1754634773264,0.79085262,116700.0,116690.0,0.001]
[1754634773449,0.78985262,116700.0,116690.0,0.001]
[1754634773848,0.78985262,116700.0,116690.0,0.002]
[1754634775084,0.78985262,116700.0,116690.0,0.003]
[1754634775945,1.10716861,116700.0,116690.0,0.003]
[1754634776577,0.47253663,116700.0,116690.0,0.003]
[1754634776783,1.10716861,116700.0,116690.0,0.003]
[1754634777183,0.78985262,116700.0,116690.0,0.003]
[1754634779217,1.10716861,116700.0,116690.0,0.003]
[1754634780140,1.44716861,116700.0,116690.0,0.003]
[1754634780564,1.47290361,116700.0,116690.0,0.003]
[1754634780820,1.47290361,116700.0,116690.0,0.002]
[1754634781911,0.83827163,116700.0,116690.0,0.002]
[1754634782139,0.83827163,116700.0,116690.0,0.001]
[1754634782342,1.47290361,116700.0,116690.0,0.001]
[1754634784652,0.83827163,116700.0,116690.0,0.001]
[1754634785053,1.47290361,116700.0,116690.0,0.001]
[1754634791542,1.49790361,116700.0,116690.0,0.001]
[1754634791733,1.8152196,116700.0,116690.0,0.001]
[1754634792488,1.8162196,116700.0,116690.0,0.001]
[1754634793130,1.8182196,116700.0,116690.0,0.001]
[1754634800485,1.8432196,116700.0,116690.0,0.001]
[1754634800795,1.8932196,116700.0,116690.0,0.001]
[1754634802004,1.8682196,116700.0,116690.0,0.001]
[1754634802209,1.8932196,116700.0,116690.0,0.001]
[1754634802761,0.94127163,116700.0,116690.0,0.001]
[1754634802939,1.8932196,116700.0,116690.0,0.001]
[1754634805327,0.94127163,116700.0,116690.0,0.001]
[1754634805527,1.8682196,116700.0,116690.0,0.001]
[1754634805897,1.8932196,116700.0,116690.0,0.001]
[1754634807662,2.0989796,116700.0,116690.0,0.001]
[1754634809098,2.0739796,116700.0,116690.0,0.001]
[1754634809442,2.0989796,116700.0,116690.0,0.001]
[1754634813176,0.55384331,116690.0,116680.0,0.02338]
[1754634813429,0.213858,116680.0,116670.0,0.02649]
[1754634813623,1.06967209,116680.0,116670.0,0.02861]
[1754634814690,1.06967209,116680.0,116670.0,0.02908406]
[1754634815035,1.09739309,116680.0,116670.0,0.02908406]
[1754634815242,1.43739309,116680.0,116670.0,0.02385406]
[1754634815387,1.52418734,116680.0,116670.0,0.02385406]
[1754634816083,1.84150333,116680.0,116670.0,0.02385406]
[1754634816286,1.84150333,116680.0,116670.0,0.00047406]
[1754634816499,1.85420333,116680.0,116670.0,0.00047406]
[1754634818074,1.85520333,116680.0,116670.0,0.00047406]
[1754634818385,1.85620333,116680.0,116670.0,0.00047406]
[1754634818553,1.85520333,116680.0,116670.0,0.00047406]
[1754634818716,1.53860272,116680.0,116670.0,0.00047406]
[1754634818918,1.52790272,116680.0,116670.0,0.00047406]
[1754634819994,1.54060272,116680.0,116670.0,0.00047406]
[1754634820199,1.18922005,116670.0,116660.0,0.02649]
[1754634820405,1.49735641,116670.0,116660.0,0.02875225]
[1754634821325,1.49835641,116670.0,116660.0,0.02875225]
[1754634821759,1.49935641,116670.0,116660.0,0.02875225]
[1754634822591,0.86400905,116670.0,116660.0,0.02875225]
[1754634822747,1.52509941,116670.0,116660.0,0.02875225]
[1754634825751,0.88975205,116670.0,116660.0,0.02875225]
[1754634825972,1.52509941,116670.0,116660.0,0.02875225]
[1754634826846,1.52716941,116670.0,116660.0,0.02875225]
[1754634827049,1.52716941,116670.0,116660.0,0.02352225]
[1754634827670,1.52716941,116670.0,116660.0,0.00014225]
[1754634828080,1.52716941,116670.0,116660.0,0.02343225]
[1754634828617,1.52546941,116670.0,116660.0,0.02343225]
[1754634831974,1.52546941,116670.0,116660.0,0.02640225]
[1754634832766,1.52546941,116670.0,116660.0,0.02845225]
[1754634833356,1.52546941,116670.0,116660.0,0.02343225]
[1754634840326,0.88912205,116670.0,116660.0,0.02343225]
[1754634840481,1.52446941,116670.0,116660.0,0.02443225]
[1754634840684,1.52447415,116670.0,116660.0,0.02443225]
[1754634840898,1.52347415,116670.0,116660.0,0.02443225]
[1754634841098,1.52347415,116670.0,116660.0,0.02343225]
[1754634841500,1.52347415,116670.0,116660.0,0.02443225]
[1754634841710,1.52347415,116670.0,116660.0,0.02343225]
[1754634841848,1.2057981,116670.0,116660.0,0.02643225]
[1754634842375,0.72827205,116670.0,116660.0,0.03145225]
[1754634842560,0.84462303,116670.0,116660.0,0.3491283]
[1754634842742,0.86207205,116670.0,116660.0,0.3491283]
[1754634842947,0.86207205,116670.0,116660.0,0.03145225]
[1754634843344,1.1797481,116670.0,116660.0,0.03145225]
[1754634844068,0.86207205,116670.0,116660.0,0.03145225]
[1754634844281,1.1797481,116670.0,116660.0,0.03145225]
[1754634844694,0.86207205,116670.0,116660.0,0.03145225]
[1754634846010,1.17965279,116670.0,116660.0,0.03145225]
[1754634847225,0.86207205,116670.0,116660.0,0.03145225]
[1754634847679,0.72827205,116670.0,116660.0,0.03145225]
[1754634848213,0.86183205,116670.0,116660.0,0.03145225]
[1754634848562,0.83608905,116670.0,116660.0,0.03145225]
[1754634848771,0.86182905,116670.0,116660.0,0.03145225]
[1754634849244,0.83608905,116670.0,116660.0,0.03145225]
[1754634851146,0.86183005,116670.0,116660.0,0.03145225]
[1754634851350,0.83608905,116670.0,116660.0,0.03145225]
[1754634852604,1.15366979,116670.0,116660.0,0.03145225]
[1754634852871,1.17941079,116670.0,116660.0,0.03145225]
[1754634854106,0.86183005,116670.0,116660.0,0.03145225]
[1754634854837,0.83608905,116670.0,116660.0,0.03145225]
[1754634855037,0.86183005,116670.0,116660.0,0.03145225]
[1754634859581,0.86382005,116670.0,116660.0,0.03145225]
[1754634860638,0.86183005,116670.0,116660.0,0.03145225]
[1754634862802,0.91183005,116670.0,116660.0,0.03145225]
[1754634866781,1.22941403,116670.0,116660.0,0.03145225]
[1754634874118,0.91183005,116670.0,116660.0,0.03145225]
[1754634874321,1.22941403,116670.0,116660.0,0.03145225]
[1754634880052,1.23139403,116670.0,116660.0,0.02848225]
[1754634880263,1.23139403,116670.0,116660.0,0.02643225]
[1754634889488,0.78025005,116670.0,116660.0,0.02839225]
[1754634889708,0.8239558,116670.0,116660.0,0.03141225]
[1754634890059,1.14153978,116670.0,116660.0,0.03141225]
[1754634890698,0.8239558,116670.0,116660.0,0.03141225]
[1754634891731,1.14153978,116670.0,116660.0,0.03141225]
[1754634892527,0.8239558,116670.0,116660.0,0.03141225]
[1754634892750,0.91075005,116670.0,116660.0,0.03141225]
[1754634895674,0.91063005,116670.0,116660.0,0.03141225]
[1754634896116,1.22821403,116670.0,116660.0,0.03141225]
[1754634896868,1.23019403,116670.0,116660.0,0.03141225]
[1754634897079,1.23019403,116670.0,116660.0,0.02643225]
[1754634899209,0.86261005,116670.0,116660.0,0.02643225]
[1754634899413,1.18019403,116670.0,116660.0,0.02643225]
[1754634901205,1.18019403,116670.0,116660.0,0.02945225]
[1754634902255,0.86261005,116670.0,116660.0,0.02945225]
[1754634902601,1.18019403,116670.0,116660.0,0.02945225]
[1754634905292,1.18019403,116670.0,116660.0,0.02643225]
[1754634909874,1.18019403,116670.0,116660.0,0.00314225]
[1754634910074,1.19580403,116670.0,116660.0,0.00314225]
[1754634910358,1.18310403,116670.0,116660.0,0.00314225]
[1754634910560,1.18019403,116670.0,116660.0,0.00314225]
[1754634910812,1.18019403,116670.0,116660.0,0.02605225]
[1754634916805,1.19579403,116670.0,116660.0,0.00314225]
[1754634931118,1.18309403,116670.0,116660.0,0.00314225]
[1754634931318,1.18019403,116670.0,116660.0,0.02785225]
[1754634931833,0.86261005,116670.0,116660.0,0.02785225]
[1754634932091,1.18019403,116670.0,116660.0,0.02785225]
[1754634933111,0.86261005,116670.0,116660.0,0.02785225]
[1754634933346,1.18019403,116670.0,116660.0,0.02785225]
[1754634943315,0.86261005,116670.0,116660.0,0.02785225]
[1754634943629,1.18019403,116670.0,116660.0,0.02785225]
[1754634944192,0.86261005,116670.0,116660.0,0.02785225]
[1754634944389,1.18019403,116670.0,116660.0,0.02785225]
[1754634946841,0.86261005,116670.0,116660.0,0.02785225]
[1754634947060,1.18019403,116670.0,116660.0,0.02785225]
[1754634950867,0.86261005,116670.0,116660.0,0.02785225]
[1754634951067,1.18019403,116670.0,116660.0,0.02785225]
[1754634951266,0.86063005,116670.0,116660.0,0.35075623]
[1754634951507,0.7738358,116670.0,116660.0,0.35075623]
[1754634951651,0.7732358,116670.0,116660.0,0.35075623]
[1754634951853,0.7732358,116670.0,116660.0,0.52219459]
[1754634952694,0.7732358,116670.0,116660.0,0.35075623]
[1754634953282,0.7732358,116670.0,116660.0,0.52219459]
[1754634953446,0.86003005,116670.0,116660.0,0.83977857]
[1754634953851,0.86003005,116670.0,116660.0,0.52219459]
[1754634955195,0.86003005,116670.0,116660.0,0.03317225]
[1754634955409,0.86003005,116670.0,116660.0,0.35075623]
[1754634955802,0.86003005,116670.0,116660.0,0.52219459]
[1754634956514,0.86003005,116670.0,116660.0,0.35075623]
[1754634958410,0.86003005,116670.0,116660.0,0.52219459]
[1754634960734,0.86003005,116670.0,116660.0,0.83977857]
[1754634960894,0.86003005,116670.0,116660.0,0.52219459]
[1754634961426,0.86003005,116670.0,116660.0,0.83977857]
[1754634961651,0.86003005,116670.0,116660.0,0.52219459]
[1754634963090,0.55684638,116670.0,116660.0,0.83977857]
[1754634963293,0.7731958,116670.0,116660.0,0.83977857]
[1754634964263,0.7731958,116670.0,116660.0,0.83777857]
[1754634964631,0.7731958,116670.0,116660.0,0.52219459]
[1754634965036,0.7731958,116670.0,116660.0,0.83977857]
[1754634965401,0.7731958,116670.0,116660.0,0.84177857]
[1754634966951,0.85999005,116670.0,116660.0,0.84177857]
[1754634967130,0.85999005,116670.0,116660.0,0.83177857]
[1754634967492,0.83424905,116670.0,116660.0,0.83177857]
[1754634967694,0.66282538,116670.0,116660.0,0.83177857]
[1754634976725,0.66282538,116670.0,116660.0,0.51419459]
[1754634976950,0.66282538,116670.0,116660.0,0.83177857]
[1754634979502,0.32282538,116670.0,116660.0,0.83177857]
[1754634979847,0.23603113,116670.0,116660.0,0.83177857]
[1754634986462,0.10431113,116670.0,116660.0,0.83177857]
[1754634986660,0.23595113,116670.0,116660.0,0.83177857]
[1754634986791,0.23595113,116670.0,116660.0,0.85751557]
[1754634988272,0.13164,116670.0,116660.0,0.85921557]
[1754634988760,0.13164,116670.0,116660.0,1.17679955]
[1754634988947,0.10424327,116690.0,116680.0,0.17140898]
[1754634989178,0.23595113,116690.0,116680.0,0.80859694]
[1754634989311,0.23595113,116690.0,116680.0,0.83648694]
[1754634990080,0.10431113,116690.0,116680.0,0.83648694]
[1754634990293,0.23595113,116690.0,116680.0,0.83648694]
[1754634993838,0.14908902,116690.0,116680.0,0.83818694]
[1754634998450,0.14908902,116690.0,116680.0,0.83818694]
[1754635003395,0.14908902,116690.0,116680.0,0.96978694]
[1754635004423,0.13164,116690.0,116680.0,1.28737092]
[1754635005642,0.13164,116690.0,116680.0,1.28837092]
[1754635005957,0.13164,116690.0,116680.0,0.97178694]
[1754635006519,0.76562822,116710.0,116700.0,0.1713796]
[1754635006754,0.98603033,116710.0,116700.0,0.48896358]
[1754635007719,0.98650448,116710.0,116700.0,0.48896358]
[1754635007916,1.04081342,116710.0,116700.0,0.48896358]
[1754635009135,1.04181342,116710.0,116700.0,0.48896358]
[1754635009345,1.04472342,116710.0,116700.0,0.48896358]
[1754635012003,1.01926342,116710.0,116700.0,0.48896358]
[1754635012182,0.96495448,116710.0,116700.0,0.51151358]
[1754635012380,0.96495448,116710.0,116700.0,0.1939296]
[1754635012529,0.96495448,116710.0,116700.0,0.82909756]
[1754635012952,0.79358907,116710.0,116700.0,0.83223756]
[1754635013130,0.79358907,116710.0,116700.0,0.83429756]
[1754635013328,0.86008394,116710.0,116700.0,0.83429756]
[1754635013556,0.21989626,116710.0,116700.0,0.83429756]
[1754635013787,0.00147415,116710.0,116700.0,0.83599756]
[1754635013934,0.13303415,116710.0,116700.0,0.83599756]
[1754635014941,0.13303415,116710.0,116700.0,0.2008296]
[1754635015142,0.13303415,116710.0,116700.0,0.83599756]
[1754635015391,0.13203415,116710.0,116700.0,0.83599756]
[1754635019420,0.13203415,116710.0,116700.0,0.84454016]
[1754635019676,0.13203415,116710.0,116700.0,0.83599756]
[1754635020378,0.13203415,116710.0,116700.0,0.2008296]
[1754635020587,0.13203415,116710.0,116700.0,0.83599756]
[1754635021411,0.13203415,116710.0,116700.0,0.2008296]
[1754635021642,0.16324121,116710.0,116700.0,0.83599756]
[1754635022061,0.13203415,116710.0,116700.0,0.83599756]
[1754635024946,0.13203415,116710.0,116700.0,0.2008296]
[1754635025149,0.13203415,116710.0,116700.0,0.83599756]
[1754635025419,0.13203415,116710.0,116700.0,0.2008296]
[1754635025561,0.13203415,116710.0,116700.0,0.83599756]
[1754635025755,0.16324121,116710.0,116700.0,0.83599756]
[1754635028005,0.13203415,116710.0,116700.0,0.83599756]
[1754635032482,0.00047415,116710.0,116700.0,0.83599756]
[1754635034437,0.00047415,116710.0,116700.0,0.96743756]
[1754635036421,0.00047415,116710.0,116700.0,0.83599756]
[1754635037826,0.00047415,116710.0,116700.0,0.2008296]
[1754635038070,0.00047415,116710.0,116700.0,0.83599756]
[1754635041772,0.00047415,116710.0,116700.0,0.2008296]
[1754635041974,0.00047415,116710.0,116700.0,0.83599756]
[1754635048394,0.00047415,116710.0,116700.0,0.96743756]
[1754635052709,0.00047415,116710.0,116700.0,0.99316356]
[1754635055460,0.00047415,116710.0,116700.0,1.31074754]
[1754635056921,0.00047415,116710.0,116700.0,1.31174754]
[1754635057140,0.00047415,116710.0,116700.0,1.31274754]
[1754635057732,0.00047415,116710.0,116700.0,1.31174754]
[1754635058361,0.00047415,116710.0,116700.0,1.31074754]
[1754635061619,0.00047415,116710.0,116700.0,1.59760965]
[1754635061817,0.00047415,116710.0,116700.0,2.20700965]
[1754635063164,0.00047415,116710.0,116700.0,2.20800965]
[1754635063511,0.00047415,116710.0,116700.0,2.20700965]
[1754635064817,0.00047415,116710.0,116700.0,1.80248356]
[1754635064971,0.00242415,116710.0,116700.0,1.10337356]
[1754635065295,0.00242415,116710.0,116700.0,1.23473356]
[1754635065530,0.00242415,116710.0,116700.0,1.25745356]
[1754635066202,0.00442415,116710.0,116700.0,1.25957356]
[1754635066348,0.00442415,116710.0,116700.0,1.26251356]
[1754635066749,0.00247415,116710.0,116700.0,1.05025495]
[1754635067862,0.00247415,116710.0,116700.0,0.78085495]
[1754635072263,0.00252415,116710.0,116700.0,0.78085495]
[1754635072889,0.00252415,116710.0,116700.0,0.77579495]
[1754635073018,0.02796415,116710.0,116700.0,0.3301656]
[1754635073216,0.05738746,116710.0,116700.0,0.3301656]
[1754635073427,0.22875238,116710.0,116700.0,0.3301656]
[1754635073651,0.22875238,116710.0,116700.0,0.1988056]
[1754635074017,0.33306351,116710.0,116700.0,0.1971056]
[1754635074207,0.33306351,116710.0,116700.0,0.1713796]
[1754635076152,0.33306351,116710.0,116700.0,0.59428895]
[1754635081842,0.33017351,116710.0,116700.0,0.59428895]
[1754635082583,0.33309351,116710.0,116700.0,0.59428895]
[1754635082730,0.01744902,116700.0,116690.0,0.64737835]
[1754635082935,0.22583287,116700.0,116690.0,0.330129]